[Event "Titled Tuesday Blitz March 14 Early 2023"]
[White "TimGrutter03"]
[Black "Samaganova, Aleksandra"]
[BlackFideId "13800221"]
[WhiteElo "2475"]
[BlackElo "1858"]
[Result "1-0"]
[Round "07"]
[TimeControl "180+2"]
[Date "2023.03.14"]
[WhiteClock "0:00:06"]
[BlackClock "0:00:02"]

1. e4 {[%clk 0:02:59]}  c5 {[%clk 0:02:59]} 2. Nf3 {[%clk 0:02:58]}  e6 {[%clk 0:02:58]} 3. g3 {[%clk 0:02:57]}  Nc6 {[%clk 0:02:57]} 4. Bg2 {[%clk 0:02:57]}  g6 {[%clk 0:02:57]} 5. Nc3 {[%clk 0:02:52]}  Bg7 {[%clk 0:02:55]} 6. O-O {[%clk 0:02:48]}  Nge7 {[%clk 0:02:55]} 7. d4 {[%clk 0:02:47]}  cxd4 {[%clk 0:02:44]} 8. Nb5 {[%clk 0:02:34]}  d5 {[%clk 0:02:42]} 9. exd5 {[%clk 0:02:30]}  Nxd5 {[%clk 0:02:39]} 10. Nfxd4 {[%clk 0:02:26]}  Nxd4 {[%clk 0:02:36]} 11. Nxd4 {[%clk 0:02:27]}  O-O {[%clk 0:02:32]} 12. c3 {[%clk 0:02:18]}  Bd7 {[%clk 0:02:22]} 13. h4 {[%clk 0:02:05]}  h6 {[%clk 0:02:16]} 14. h5 {[%clk 0:02:03]}  g5 {[%clk 0:02:13]} 15. Nb3 {[%clk 0:02:01]}  Bc6 {[%clk 0:02:12]} 16. Qe2 {[%clk 0:01:52]}  Qc7 {[%clk 0:01:58]} 17. Be3 {[%clk 0:01:41]}  b6 {[%clk 0:01:55]} 18. Bd4 {[%clk 0:01:35]}  e5 {[%clk 0:01:50]} 19. Be3 {[%clk 0:01:33]}  Rad8 {[%clk 0:01:42]} 20. Rfd1 {[%clk 0:01:30]}  Rfe8 {[%clk 0:01:18]} 21. Qc4 {[%clk 0:01:24]}  Qb7 {[%clk 0:00:36]} 22. Qf1 {[%clk 0:00:59]}  Rd7 {[%clk 0:00:19]} 23. c4 {[%clk 0:00:46]}  Nxe3 {[%clk 0:00:16]} 24. fxe3 {[%clk 0:00:44]}  Red8 {[%clk 0:00:17]} 25. Rxd7 {[%clk 0:00:43]}  Qxd7 {[%clk 0:00:15]} 26. Qe2 {[%clk 0:00:39]}  Bxg2 {[%clk 0:00:13]} 27. Kxg2 {[%clk 0:00:40]}  e4 {[%clk 0:00:08]} 28. Nd4 {[%clk 0:00:34]}  Qc7 {[%clk 0:00:04]} 29. Rd1 {[%clk 0:00:32]}  Qc5 {[%clk 0:00:03]} 30. Ne6 {[%clk 0:00:29]}  fxe6 {[%clk 0:00:03]} 31. Rxd8+ {[%clk 0:00:28]}  Kh7 {[%clk 0:00:04]} 32. b3 {[%clk 0:00:22]}  Qc7 {[%clk 0:00:04]} 33. Rd1 {[%clk 0:00:20]}  Be5 {[%clk 0:00:03]} 34. Qg4 {[%clk 0:00:20]}  Qc6 {[%clk 0:00:02]} 35. Rf1 {[%clk 0:00:18]}  Bg7 {[%clk 0:00:02]} 36. Rf7 {[%clk 0:00:15]}  Kg8 {[%clk 0:00:02]} 37. Rxa7 {[%clk 0:00:15]}  b5 {[%clk 0:00:02]} 38. Qe2 {[%clk 0:00:11]}  b4 {[%clk 0:00:02]} 39. Qd2 {[%clk 0:00:09]}  Bf8 {[%clk 0:00:01]} 40. Qd7 {[%clk 0:00:08]}  Qxd7 {[%clk 0:00:01]} 41. Rxd7 {[%clk 0:00:08]}  e5 {[%clk 0:00:02]} 42. Rd5 {[%clk 0:00:06]} 1-0


[Site "https://www.chess.com"]

[Event "Titled Tuesday Blitz March 14 Early 2023"]
[White "Sadubayev, Airat"]
[Black "Kalajzic, Ivan"]
[WhiteFideId "13713264"]
[BlackFideId "14506378"]
[WhiteElo "2129"]
[BlackElo "2203"]
[Result "0-1"]
[Round "07"]
[TimeControl "180+2"]
[Date "2023.03.14"]
[WhiteClock "0:00:07"]
[BlackClock "0:00:19"]

1. d4 {[%clk 0:03:00]}  d5 {[%clk 0:02:59]} 2. c4 {[%clk 0:03:01]}  Nc6 {[%clk 0:02:59]} 3. cxd5 {[%clk 0:02:55]}  Qxd5 {[%clk 0:02:58]} 4. Nf3 {[%clk 0:02:55]}  e5 {[%clk 0:02:58]} 5. e3 {[%clk 0:02:50]}  Nf6 {[%clk 0:02:43]} 6. Be2 {[%clk 0:02:46]}  e4 {[%clk 0:02:32]} 7. Nfd2 {[%clk 0:02:41]}  Qf5 {[%clk 0:02:26]} 8. O-O {[%clk 0:02:31]}  Bd6 {[%clk 0:02:26]} 9. f3 {[%clk 0:02:18]}  exf3 {[%clk 0:02:17]} 10. Nxf3 {[%clk 0:02:14]}  O-O {[%clk 0:02:13]} 11. Nc3 {[%clk 0:02:12]}  Ne4 {[%clk 0:02:07]} 12. Bd3 {[%clk 0:01:50]}  Nxc3 {[%clk 0:02:03]} 13. bxc3 {[%clk 0:01:51]}  Qh5 {[%clk 0:02:03]} 14. e4 {[%clk 0:01:44]}  Bg4 {[%clk 0:01:54]} 15. e5 {[%clk 0:01:41]}  Be7 {[%clk 0:01:54]} 16. Bf4 {[%clk 0:01:33]}  Rad8 {[%clk 0:01:46]} 17. Bg3 {[%clk 0:01:29]}  Nb8 {[%clk 0:01:18]} 18. Rb1 {[%clk 0:01:19]}  b6 {[%clk 0:01:17]} 19. h3 {[%clk 0:01:09]}  Bxf3 {[%clk 0:01:17]} 20. Rxf3 {[%clk 0:01:10]}  Nd7 {[%clk 0:01:14]} 21. Qf1 {[%clk 0:00:55]}  g6 {[%clk 0:01:09]} 22. Bc4 {[%clk 0:00:45]}  g5 {[%clk 0:01:09]} 23. Qf2 {[%clk 0:00:35]}  Kg7 {[%clk 0:00:57]} 24. Rf1 {[%clk 0:00:35]}  f6 {[%clk 0:00:58]} 25. e6 {[%clk 0:00:32]}  Nb8 {[%clk 0:00:55]} 26. Kh1 {[%clk 0:00:20]}  c6 {[%clk 0:00:51]} 27. Be2 {[%clk 0:00:20]}  Qg6 {[%clk 0:00:50]} 28. Bd3 {[%clk 0:00:19]}  Qh5 {[%clk 0:00:50]} 29. Bf5 {[%clk 0:00:16]}  c5 {[%clk 0:00:43]} 30. Bg4 {[%clk 0:00:14]}  Qg6 {[%clk 0:00:44]} 31. Rd1 {[%clk 0:00:13]}  cxd4 {[%clk 0:00:42]} 32. cxd4 {[%clk 0:00:12]}  Nc6 {[%clk 0:00:38]} 33. d5 {[%clk 0:00:11]}  Ne5 {[%clk 0:00:38]} 34. Bf5 {[%clk 0:00:08]}  Qh5 {[%clk 0:00:34]} 35. Re3 {[%clk 0:00:08]}  Qxd1+ {[%clk 0:00:33]} 36. Kh2 {[%clk 0:00:08]}  Qxd5 {[%clk 0:00:33]} 37. Re1 {[%clk 0:00:06]}  Ng6 {[%clk 0:00:31]} 38. Bb1 {[%clk 0:00:05]}  Bd6 {[%clk 0:00:31]} 39. Bxd6 {[%clk 0:00:04]}  Qxd6+ {[%clk 0:00:31]} 40. Kh1 {[%clk 0:00:03]}  Rde8 {[%clk 0:00:25]} 41. Bxg6 {[%clk 0:00:04]}  hxg6 {[%clk 0:00:24]} 42. Qb2 {[%clk 0:00:04]}  Rxe6 {[%clk 0:00:23]} 43. Rc1 {[%clk 0:00:05]}  Qe5 {[%clk 0:00:22]} 44. Qb3 {[%clk 0:00:05]}  Rf7 {[%clk 0:00:22]} 45. Rd1 {[%clk 0:00:04]}  Rfe7 {[%clk 0:00:22]} 46. Rf1 {[%clk 0:00:03]}  Qe3 {[%clk 0:00:19]} 47. Rg1 {[%clk 0:00:03]}  Qxb3 {[%clk 0:00:19]} 48. axb3 {[%clk 0:00:04]}  Re1 {[%clk 0:00:19]} 49. Kh2 {[%clk 0:00:04]}  Rxg1 {[%clk 0:00:19]} 50. Kxg1 {[%clk 0:00:05]}  a5 {[%clk 0:00:19]} 51. Kf2 {[%clk 0:00:04]}  b5 {[%clk 0:00:19]} 52. Kf3 {[%clk 0:00:04]}  a4 {[%clk 0:00:19]} 53. bxa4 {[%clk 0:00:05]}  bxa4 {[%clk 0:00:20]} 54. Kf2 {[%clk 0:00:05]}  a3 {[%clk 0:00:20]} 55. Kf3 {[%clk 0:00:06]}  a2 {[%clk 0:00:21]} 56. Kf2 {[%clk 0:00:07]}  a1=Q {[%clk 0:00:21]} 57. Kf3 {[%clk 0:00:07]}  Qc3+ {[%clk 0:00:20]} 58. Kf2 {[%clk 0:00:08]}  Qe3+ {[%clk 0:00:19]} 59. Kf1 {[%clk 0:00:07]}  Qe1# {[%clk 0:00:19]} 0-1


[Site "https://www.chess.com"]

[Event "Titled Tuesday Blitz March 14 Early 2023"]
[White "Smith, Garrett L"]
[Black "Rosenberg, Evan S"]
[WhiteFideId "2024829"]
[BlackFideId "2019299"]
[WhiteElo "2254"]
[BlackElo "2393"]
[Result "1-0"]
[Round "07"]
[TimeControl "180+2"]
[Date "2023.03.14"]
[WhiteClock "0:00:10"]
[BlackClock "0:00:11"]

1. e4 {[%clk 0:03:00]}  e5 {[%clk 0:02:59]} 2. Nf3 {[%clk 0:03:01]}  Nc6 {[%clk 0:03:00]} 3. Bc4 {[%clk 0:03:01]}  Nf6 {[%clk 0:03:00]} 4. Ng5 {[%clk 0:03:00]}  d6 {[%clk 0:03:00]} 5. Nxf7 {[%clk 0:02:47]}  Qe7 {[%clk 0:02:58]} 6. Nxh8 {[%clk 0:02:47]}  Be6 {[%clk 0:02:55]} 7. Bxe6 {[%clk 0:02:34]}  Qxe6 {[%clk 0:02:55]} 8. d3 {[%clk 0:02:30]}  O-O-O {[%clk 0:02:54]} 9. Nc3 {[%clk 0:02:16]}  Be7 {[%clk 0:02:53]} 10. Bg5 {[%clk 0:02:11]}  Rxh8 {[%clk 0:02:52]} 11. Bxf6 {[%clk 0:02:06]}  gxf6 {[%clk 0:02:49]} 12. Nd5 {[%clk 0:02:06]}  Bd8 {[%clk 0:02:49]} 13. c3 {[%clk 0:02:03]}  f5 {[%clk 0:02:47]} 14. Qf3 {[%clk 0:02:01]}  f4 {[%clk 0:02:26]} 15. O-O-O {[%clk 0:01:52]}  Kb8 {[%clk 0:02:22]} 16. Kb1 {[%clk 0:01:52]}  Rg8 {[%clk 0:02:13]} 17. h3 {[%clk 0:01:51]}  Bh4 {[%clk 0:02:08]} 18. Rhg1 {[%clk 0:01:48]}  Nd8 {[%clk 0:02:07]} 19. g4 {[%clk 0:01:26]}  c6 {[%clk 0:01:59]} 20. Nb4 {[%clk 0:01:26]}  a5 {[%clk 0:01:57]} 21. Nc2 {[%clk 0:01:27]}  a4 {[%clk 0:01:57]} 22. Rg2 {[%clk 0:01:22]}  Nf7 {[%clk 0:01:50]} 23. Rh2 {[%clk 0:01:16]}  Ng5 {[%clk 0:01:49]} 24. Qe2 {[%clk 0:01:16]}  c5 {[%clk 0:01:28]} 25. f3 {[%clk 0:01:16]}  Bg3 {[%clk 0:01:27]} 26. Rhh1 {[%clk 0:01:16]}  Nf7 {[%clk 0:01:21]} 27. h4 {[%clk 0:01:15]}  h5 {[%clk 0:01:17]} 28. g5 {[%clk 0:01:12]}  Nd8 {[%clk 0:01:16]} 29. d4 {[%clk 0:01:12]}  cxd4 {[%clk 0:01:13]} 30. cxd4 {[%clk 0:01:12]}  Nf7 {[%clk 0:01:06]} 31. Qb5 {[%clk 0:01:10]}  Qe8 {[%clk 0:01:00]} 32. Qd5 {[%clk 0:01:04]}  Bf2 {[%clk 0:00:51]} 33. Rhf1 {[%clk 0:00:48]}  Bxh4 {[%clk 0:00:49]} 34. dxe5 {[%clk 0:00:43]}  dxe5 {[%clk 0:00:49]} 35. Rh1 {[%clk 0:00:35]}  Bxg5 {[%clk 0:00:48]} 36. Rxh5 {[%clk 0:00:35]}  Bd8 {[%clk 0:00:32]} 37. Rh7 {[%clk 0:00:31]}  Rf8 {[%clk 0:00:28]} 38. a3 {[%clk 0:00:30]}  Bc7 {[%clk 0:00:27]} 39. Nb4 {[%clk 0:00:29]}  Ng5 {[%clk 0:00:22]} 40. Rg7 {[%clk 0:00:24]}  Nxf3 {[%clk 0:00:21]} 41. Rc1 {[%clk 0:00:22]}  Qd8 {[%clk 0:00:13]} 42. Rcxc7 {[%clk 0:00:20]}  Qxc7 {[%clk 0:00:06]} 43. Rxc7 {[%clk 0:00:19]}  Kxc7 {[%clk 0:00:07]} 44. Qc5+ {[%clk 0:00:20]}  Kd7 {[%clk 0:00:08]} 45. Qxf8 {[%clk 0:00:20]}  Nd2+ {[%clk 0:00:08]} 46. Kc2 {[%clk 0:00:20]}  Nxe4 {[%clk 0:00:09]} 47. Qf5+ {[%clk 0:00:20]}  Kc7 {[%clk 0:00:08]} 48. Qxe4 {[%clk 0:00:20]}  b5 {[%clk 0:00:09]} 49. Qxe5+ {[%clk 0:00:20]}  Kb6 {[%clk 0:00:09]} 50. Qxf4 {[%clk 0:00:18]}  Ka7 {[%clk 0:00:08]} 51. Qc7+ {[%clk 0:00:17]}  Ka8 {[%clk 0:00:08]} 52. Qa5+ {[%clk 0:00:16]}  Kb7 {[%clk 0:00:08]} 53. Qxb5+ {[%clk 0:00:16]}  Ka7 {[%clk 0:00:08]} 54. Qxa4+ {[%clk 0:00:17]}  Kb7 {[%clk 0:00:09]} 55. Qa6+ {[%clk 0:00:17]}  Kb8 {[%clk 0:00:09]} 56. a4 {[%clk 0:00:14]}  Kc7 {[%clk 0:00:09]} 57. Qb5 {[%clk 0:00:13]}  Kc8 {[%clk 0:00:08]} 58. a5 {[%clk 0:00:12]}  Kc7 {[%clk 0:00:09]} 59. Qb6+ {[%clk 0:00:12]}  Kc8 {[%clk 0:00:09]} 60. a6 {[%clk 0:00:11]}  Kd7 {[%clk 0:00:09]} 61. a7 {[%clk 0:00:11]}  Ke7 {[%clk 0:00:10]} 62. a8=R {[%clk 0:00:09]}  Kd7 {[%clk 0:00:10]} 63. Rd8+ {[%clk 0:00:08]}  Ke7 {[%clk 0:00:10]} 64. Qd6+ {[%clk 0:00:09]}  Kf7 {[%clk 0:00:10]} 65. Rf8+ {[%clk 0:00:09]}  Kg7 {[%clk 0:00:10]} 66. Qf6+ {[%clk 0:00:10]}  Kh7 {[%clk 0:00:11]} 67. Rh8# {[%clk 0:00:10]} 1-0


[Site "https://www.chess.com"]

[Event "Titled Tuesday Blitz March 14 Early 2023"]
[White "Matveeva, Olga"]
[Black "Clawitter, Craig"]
[WhiteFideId "24107018"]
[BlackFideId "2023105"]
[WhiteElo "2056"]
[BlackElo "2242"]
[Result "1-0"]
[Round "07"]
[TimeControl "180+2"]
[Date "2023.03.14"]
[WhiteClock "0:01:19"]
[BlackClock "0:01:02"]

1. d4 {[%clk 0:03:00]}  e6 {[%clk 0:02:58]} 2. c4 {[%clk 0:03:00]}  Nf6 {[%clk 0:02:59]} 3. g3 {[%clk 0:02:59]}  d5 {[%clk 0:02:59]} 4. Nf3 {[%clk 0:02:59]}  Be7 {[%clk 0:03:00]} 5. Bg2 {[%clk 0:02:59]}  O-O {[%clk 0:03:00]} 6. O-O {[%clk 0:02:59]}  dxc4 {[%clk 0:03:01]} 7. Qc2 {[%clk 0:02:59]}  a6 {[%clk 0:03:01]} 8. a4 {[%clk 0:02:59]}  Bd7 {[%clk 0:03:01]} 9. Qxc4 {[%clk 0:02:59]}  Bc6 {[%clk 0:03:01]} 10. Bf4 {[%clk 0:03:00]}  a5 {[%clk 0:02:58]} 11. Nc3 {[%clk 0:02:58]}  Na6 {[%clk 0:02:59]} 12. Rac1 {[%clk 0:02:37]}  Nb4 {[%clk 0:02:57]} 13. Nb5 {[%clk 0:02:35]}  Rc8 {[%clk 0:02:41]} 14. Na7 {[%clk 0:01:59]}  Ra8 {[%clk 0:01:58]} 15. Nxc6 {[%clk 0:01:57]}  Nxc6 {[%clk 0:01:56]} 16. Rfd1 {[%clk 0:01:53]}  Qd5 {[%clk 0:01:55]} 17. Bxc7 {[%clk 0:01:47]}  Qxc4 {[%clk 0:01:54]} 18. Rxc4 {[%clk 0:01:47]}  Rac8 {[%clk 0:01:50]} 19. Bf4 {[%clk 0:01:43]}  Nd5 {[%clk 0:01:42]} 20. Rdc1 {[%clk 0:01:41]}  Nb6 {[%clk 0:01:30]} 21. R4c2 {[%clk 0:01:34]}  Nxa4 {[%clk 0:01:22]} 22. Ne5 {[%clk 0:01:33]}  Nxd4 {[%clk 0:01:23]} 23. Rxc8 {[%clk 0:01:29]}  Nxe2+ {[%clk 0:01:23]} 24. Kf1 {[%clk 0:01:28]}  Nxc1 {[%clk 0:01:11]} 25. Rxf8+ {[%clk 0:01:27]}  Kxf8 {[%clk 0:01:09]} 26. Bxc1 {[%clk 0:01:27]}  b5 {[%clk 0:01:07]} 27. Nc6 {[%clk 0:01:23]}  Bb4 {[%clk 0:01:01]} 28. Nxb4 {[%clk 0:01:21]}  axb4 {[%clk 0:01:02]} 29. Bc6 {[%clk 0:01:19]} 1-0


[Site "https://www.chess.com"]

[Event "Titled Tuesday Blitz March 14 Early 2023"]
[White "Quirke, Jeffrey"]
[Black "Jimenez, Joaquin"]
[WhiteFideId "2013029"]
[BlackFideId "109860"]
[WhiteElo "2201"]
[BlackElo "2163"]
[Result "1-0"]
[Round "07"]
[TimeControl "180+2"]
[Date "2023.03.14"]
[WhiteClock "0:00:14"]
[BlackClock "0:01:09"]

1. e4 {[%clk 0:03:00]}  e6 {[%clk 0:03:00]} 2. d4 {[%clk 0:02:56]}  d5 {[%clk 0:02:59]} 3. e5 {[%clk 0:02:57]}  c5 {[%clk 0:02:53]} 4. c3 {[%clk 0:02:57]}  Nc6 {[%clk 0:02:53]} 5. Nf3 {[%clk 0:02:56]}  Nh6 {[%clk 0:02:51]} 6. Na3 {[%clk 0:02:46]}  Nf5 {[%clk 0:02:47]} 7. Nc2 {[%clk 0:02:45]}  Qb6 {[%clk 0:02:37]} 8. Bd3 {[%clk 0:02:28]}  cxd4 {[%clk 0:02:36]} 9. Bxf5 {[%clk 0:02:27]}  exf5 {[%clk 0:02:36]} 10. Ncxd4 {[%clk 0:02:18]}  Nxd4 {[%clk 0:02:35]} 11. cxd4 {[%clk 0:02:17]}  Qa6 {[%clk 0:02:23]} 12. Qe2 {[%clk 0:02:12]}  Qxe2+ {[%clk 0:02:17]} 13. Kxe2 {[%clk 0:02:12]}  Be6 {[%clk 0:02:12]} 14. Bf4 {[%clk 0:02:10]}  Kd7 {[%clk 0:02:12]} 15. h4 {[%clk 0:02:10]}  h6 {[%clk 0:02:12]} 16. Rac1 {[%clk 0:02:07]}  Be7 {[%clk 0:02:12]} 17. h5 {[%clk 0:02:04]}  Rhc8 {[%clk 0:02:07]} 18. a3 {[%clk 0:01:54]}  b5 {[%clk 0:02:07]} 19. Bd2 {[%clk 0:01:44]}  a5 {[%clk 0:02:03]} 20. Rxc8 {[%clk 0:01:42]}  Kxc8 {[%clk 0:02:03]} 21. Rc1+ {[%clk 0:01:41]}  Kd7 {[%clk 0:02:04]} 22. Ne1 {[%clk 0:01:29]}  Bg5 {[%clk 0:01:57]} 23. f4 {[%clk 0:01:29]}  Be7 {[%clk 0:01:53]} 24. Nd3 {[%clk 0:01:29]}  b4 {[%clk 0:01:46]} 25. axb4 {[%clk 0:01:08]}  axb4 {[%clk 0:01:46]} 26. Bxb4 {[%clk 0:01:08]}  Bxb4 {[%clk 0:01:37]} 27. Nxb4 {[%clk 0:01:08]}  Rb8 {[%clk 0:01:37]} 28. Nd3 {[%clk 0:01:07]}  g6 {[%clk 0:01:36]} 29. hxg6 {[%clk 0:01:04]}  fxg6 {[%clk 0:01:36]} 30. Ra1 {[%clk 0:01:01]}  g5 {[%clk 0:01:31]} 31. Ra7+ {[%clk 0:00:54]}  Kc6 {[%clk 0:01:31]} 32. Re7 {[%clk 0:00:45]}  Bc8 {[%clk 0:01:31]} 33. Rh7 {[%clk 0:00:40]}  Ba6 {[%clk 0:01:28]} 34. Rxh6+ {[%clk 0:00:39]}  Kb5 {[%clk 0:01:28]} 35. fxg5 {[%clk 0:00:30]}  Ka5 {[%clk 0:01:28]} 36. Rxa6+ {[%clk 0:00:23]}  Kxa6 {[%clk 0:01:27]} 37. e6 {[%clk 0:00:23]}  Kb5 {[%clk 0:01:25]} 38. g6 {[%clk 0:00:23]}  Kc4 {[%clk 0:01:25]} 39. Ke3 {[%clk 0:00:23]}  Rb3 {[%clk 0:01:13]} 40. e7 {[%clk 0:00:20]}  Rxd3+ {[%clk 0:01:13]} 41. Ke2 {[%clk 0:00:18]}  Rg3 {[%clk 0:01:08]} 42. e8=Q {[%clk 0:00:17]}  Rxg2+ {[%clk 0:01:09]} 43. Kf3 {[%clk 0:00:16]}  Rxb2 {[%clk 0:01:09]} 44. g7 {[%clk 0:00:15]}  Rb3+ {[%clk 0:01:09]} 45. Kf4 {[%clk 0:00:14]} 1-0


[Site "https://www.chess.com"]

[Event "Titled Tuesday Blitz March 14 Early 2023"]
[White "Necula, Iulian"]
[Black "Wilson, Elvin"]
[WhiteFideId "1232380"]
[BlackFideId "2014874"]
[WhiteElo "1790"]
[BlackElo "2274"]
[Result "1-0"]
[Round "07"]
[TimeControl "180+2"]
[Date "2023.03.14"]
[WhiteClock "0:00:18"]
[BlackClock "0:00:01"]

1. d4 {[%clk 0:03:00]}  Nf6 {[%clk 0:02:49]} 2. Nc3 {[%clk 0:03:00]}  d5 {[%clk 0:02:46]} 3. Bf4 {[%clk 0:03:00]}  e6 {[%clk 0:02:45]} 4. Nb5 {[%clk 0:02:59]}  Na6 {[%clk 0:02:44]} 5. e3 {[%clk 0:02:58]}  c6 {[%clk 0:02:39]} 6. Nc3 {[%clk 0:02:58]}  Nc7 {[%clk 0:02:39]} 7. Nf3 {[%clk 0:02:57]}  Bd6 {[%clk 0:02:38]} 8. Ne5 {[%clk 0:02:55]}  O-O {[%clk 0:02:38]} 9. Be2 {[%clk 0:02:52]}  Qe7 {[%clk 0:02:32]} 10. a3 {[%clk 0:02:51]}  Nd7 {[%clk 0:02:21]} 11. h4 {[%clk 0:02:32]}  f6 {[%clk 0:02:19]} 12. Nd3 {[%clk 0:02:25]}  e5 {[%clk 0:02:18]} 13. Bg3 {[%clk 0:02:21]}  Nb6 {[%clk 0:02:09]} 14. b3 {[%clk 0:02:19]}  Bf5 {[%clk 0:02:08]} 15. Bg4 {[%clk 0:01:58]}  Bg6 {[%clk 0:02:03]} 16. h5 {[%clk 0:01:55]}  Bf7 {[%clk 0:02:03]} 17. O-O {[%clk 0:01:36]}  Rae8 {[%clk 0:01:56]} 18. Re1 {[%clk 0:01:35]}  e4 {[%clk 0:01:40]} 19. Nf4 {[%clk 0:01:33]}  a6 {[%clk 0:01:23]} 20. a4 {[%clk 0:01:33]}  Kh8 {[%clk 0:01:21]} 21. a5 {[%clk 0:01:33]}  Nd7 {[%clk 0:01:17]} 22. Na4 {[%clk 0:01:32]}  Bg8 {[%clk 0:01:16]} 23. Rc1 {[%clk 0:01:27]}  f5 {[%clk 0:01:16]} 24. Bh3 {[%clk 0:01:21]}  Bb4 {[%clk 0:01:15]} 25. Rf1 {[%clk 0:01:19]}  Bxa5 {[%clk 0:01:09]} 26. c4 {[%clk 0:01:16]}  dxc4 {[%clk 0:00:44]} 27. bxc4 {[%clk 0:01:15]}  Ne6 {[%clk 0:00:44]} 28. Ng6+ {[%clk 0:00:46]}  hxg6 {[%clk 0:00:43]} 29. hxg6 {[%clk 0:00:47]}  Qg5 {[%clk 0:00:30]} 30. d5 {[%clk 0:00:42]}  Nec5 {[%clk 0:00:21]} 31. Nxc5 {[%clk 0:00:41]}  Nxc5 {[%clk 0:00:21]} 32. dxc6 {[%clk 0:00:40]}  b6 {[%clk 0:00:15]} 33. c7 {[%clk 0:00:38]}  Nd3 {[%clk 0:00:12]} 34. Ra1 {[%clk 0:00:36]}  Qxg6 {[%clk 0:00:12]} 35. Rxa5 {[%clk 0:00:34]}  bxa5 {[%clk 0:00:11]} 36. Qa4 {[%clk 0:00:34]}  f4 {[%clk 0:00:10]} 37. exf4 {[%clk 0:00:33]}  Qf7 {[%clk 0:00:06]} 38. c8=Q {[%clk 0:00:26]}  Rxc8 {[%clk 0:00:06]} 39. Bxc8 {[%clk 0:00:26]}  Rxc8 {[%clk 0:00:06]} 40. Qxa5 {[%clk 0:00:25]}  Rxc4 {[%clk 0:00:02]} 41. Qxa6 {[%clk 0:00:24]}  Rc1 {[%clk 0:00:01]} 42. Qb5 {[%clk 0:00:18]}  Rxf1+ {[%clk 0:00:01]} 43. Kxf1 {[%clk 0:00:18]} 1-0


[Site "https://www.chess.com"]

[Event "Titled Tuesday Blitz March 14 Early 2023"]
[White "Zaichenko, Daria"]
[Black "Zhurova, Anna"]
[WhiteFideId "4197453"]
[BlackFideId "54113075"]
[WhiteElo "2039"]
[BlackElo "2031"]
[Result "0-1"]
[Round "07"]
[TimeControl "180+2"]
[Date "2023.03.14"]
[WhiteClock "0:01:04"]
[BlackClock "0:01:46"]

1. e4 {[%clk 0:03:00]}  c5 {[%clk 0:02:59]} 2. Nf3 {[%clk 0:03:00]}  g6 {[%clk 0:02:58]} 3. d4 {[%clk 0:02:59]}  cxd4 {[%clk 0:02:58]} 4. Nxd4 {[%clk 0:02:59]}  Bg7 {[%clk 0:02:58]} 5. Nc3 {[%clk 0:02:59]}  Nc6 {[%clk 0:02:58]} 6. Be3 {[%clk 0:02:57]}  Nf6 {[%clk 0:02:56]} 7. Bc4 {[%clk 0:02:54]}  O-O {[%clk 0:02:55]} 8. O-O {[%clk 0:02:53]}  d6 {[%clk 0:02:53]} 9. h3 {[%clk 0:02:52]}  Bd7 {[%clk 0:02:51]} 10. f4 {[%clk 0:02:47]}  Rc8 {[%clk 0:02:36]} 11. Nxc6 {[%clk 0:02:39]}  Bxc6 {[%clk 0:02:35]} 12. Bd3 {[%clk 0:02:39]}  b5 {[%clk 0:02:31]} 13. a3 {[%clk 0:02:38]}  a5 {[%clk 0:02:31]} 14. Qf3 {[%clk 0:02:13]}  b4 {[%clk 0:02:28]} 15. axb4 {[%clk 0:02:12]}  axb4 {[%clk 0:02:29]} 16. Na2 {[%clk 0:02:05]}  Rb8 {[%clk 0:02:21]} 17. Bd4 {[%clk 0:01:55]}  Nd7 {[%clk 0:02:16]} 18. Bxg7 {[%clk 0:01:55]}  Kxg7 {[%clk 0:02:17]} 19. Qe3 {[%clk 0:01:43]}  Qb6 {[%clk 0:02:11]} 20. Qxb6 {[%clk 0:01:39]}  Rxb6 {[%clk 0:02:11]} 21. Rfe1 {[%clk 0:01:28]}  Rc8 {[%clk 0:02:02]} 22. c3 {[%clk 0:01:15]}  Nc5 {[%clk 0:02:00]} 23. Nxb4 {[%clk 0:01:12]}  Rxb4 {[%clk 0:01:59]} 24. cxb4 {[%clk 0:01:10]}  Nxd3 {[%clk 0:02:00]} 25. Rec1 {[%clk 0:01:10]}  Nxc1 {[%clk 0:01:59]} 26. Rxc1 {[%clk 0:01:09]}  Bb7 {[%clk 0:01:58]} 27. Re1 {[%clk 0:01:08]}  Rc4 {[%clk 0:01:55]} 28. e5 {[%clk 0:01:08]}  d5 {[%clk 0:01:52]} 29. Ra1 {[%clk 0:01:04]}  Rxb4 {[%clk 0:01:51]} 30. Ra7 {[%clk 0:01:04]}  Rxb2 {[%clk 0:01:50]} 31. g4 {[%clk 0:01:04]}  d4 {[%clk 0:01:48]} 32. f5 {[%clk 0:01:05]}  gxf5 {[%clk 0:01:47]} 33. gxf5 {[%clk 0:01:04]}  d3 {[%clk 0:01:46]} 0-1


[Site "https://www.chess.com"]

[Event "Titled Tuesday Blitz March 14 Early 2023"]
[White "Matlakov, Maxim"]
[Black "Yu, Yangyi"]
[WhiteFideId "4168003"]
[BlackFideId "8603820"]
[WhiteElo "2666"]
[BlackElo "2783"]
[Result "1-0"]
[Round "08"]
[TimeControl "180+2"]
[Date "2023.03.14"]
[WhiteClock "0:01:43"]
[BlackClock "0:00:15"]

1. e4 {[%clk 0:03:00]}  c5 {[%clk 0:02:56]} 2. Nf3 {[%clk 0:03:01]}  d6 {[%clk 0:02:57]} 3. Bb5+ {[%clk 0:03:00]}  Nd7 {[%clk 0:02:57]} 4. O-O {[%clk 0:02:58]}  a6 {[%clk 0:02:55]} 5. Bxd7+ {[%clk 0:02:58]}  Bxd7 {[%clk 0:02:55]} 6. c3 {[%clk 0:02:59]}  Nf6 {[%clk 0:02:48]} 7. Re1 {[%clk 0:02:59]}  e6 {[%clk 0:02:42]} 8. d4 {[%clk 0:02:59]}  Be7 {[%clk 0:02:42]} 9. e5 {[%clk 0:02:59]}  dxe5 {[%clk 0:02:37]} 10. dxe5 {[%clk 0:02:59]}  Nd5 {[%clk 0:02:37]} 11. c4 {[%clk 0:02:59]}  Nb6 {[%clk 0:02:33]} 12. Qe2 {[%clk 0:02:46]}  Bc6 {[%clk 0:02:32]} 13. b3 {[%clk 0:02:41]}  O-O {[%clk 0:02:29]} 14. Nc3 {[%clk 0:02:40]}  Qc7 {[%clk 0:02:28]} 15. Ne4 {[%clk 0:02:40]}  Rfd8 {[%clk 0:02:22]} 16. Bb2 {[%clk 0:02:35]}  Nd7 {[%clk 0:02:16]} 17. Qe3 {[%clk 0:02:31]}  Nf8 {[%clk 0:02:14]} 18. Nf6+ {[%clk 0:02:21]}  Bxf6 {[%clk 0:01:48]} 19. exf6 {[%clk 0:02:22]}  Ng6 {[%clk 0:01:48]} 20. fxg7 {[%clk 0:02:11]}  Qf4 {[%clk 0:01:48]} 21. Ne5 {[%clk 0:01:50]}  Qxe3 {[%clk 0:01:34]} 22. Rxe3 {[%clk 0:01:51]}  Nxe5 {[%clk 0:01:11]} 23. Bxe5 {[%clk 0:01:52]}  Rd2 {[%clk 0:01:10]} 24. a4 {[%clk 0:01:48]}  Rad8 {[%clk 0:01:08]} 25. Rae1 {[%clk 0:01:48]}  Rd1 {[%clk 0:00:45]} 26. h4 {[%clk 0:01:44]}  Rxe1+ {[%clk 0:00:30]} 27. Rxe1 {[%clk 0:01:45]}  h5 {[%clk 0:00:25]} 28. f3 {[%clk 0:01:45]}  Rd3 {[%clk 0:00:21]} 29. Bf6 {[%clk 0:01:44]}  Kh7 {[%clk 0:00:15]} 30. Re5 {[%clk 0:01:43]} 1-0


[Site "https://www.chess.com"]